[Event "55th Rubinstein Memorial-C 2019"]
[Site "Polanica-Zdroj"]
[Date "2019.08.21"]
[Round "5.9"]
[White "Talik, Patryk"]
[Black "Jakubiak, Karol"]
[Result "1-0"]
[ECO "D60"]
[WhiteElo "1975"]
[BlackElo "1665"]
[Annotator "NA"]
[PlyCount "71"]
[EventDate "2019.08.17"]
[EventType "swiss"]
[EventCountry "POL"]
[SourceTitle "playchess.com"]
[Source "ChessBase"]
[SourceQuality "1"]
[TimeControl "40/5400+30:1800+30"]

1. d4 {[%emt 0:16:05]} Nf6 {[%emt 0:00:00]} 2. c4 {[%emt 0:00:04]} e6 {[%emt 0:00:00]} 3. Nc3 {[%emt 0:00:40]} d5 {[%emt 0:01:00]} 4. Bg5 {[%emt 0:00:46]} Be7 {[%emt 0:00:24]} 5. e3 {[%emt 0:00:20]} Nbd7 {[%emt 0:03:55]} 6. Nf3 {[%emt 0:00:35]} O-O {[%emt 0:04:07]} 7. Bd3 {[%emt 0:01:17]} b6 {[%emt 0:08:01]} 8. cxd5 {[%emt 0:00:39]} exd5 {[%emt 0:04:20]} 9. O-O {[%emt 0:11:36]} Bb7 {[%emt 0:04:47]} 10. Rc1 {[%emt 0:00:35]} Ne4 {[%emt 0:11:04]} 11. Bf4 {[%emt 0:01:48]} Ndf6 {[%emt 0:11:27] [#] D55: Queen's Gambit Declined: 4 Bg5 Be7: Lines without ...h6 and 6...h6 7 Bxf6} (11... c5 12. dxc5 Ndxc5 13. Be2 {½-½ (13) Gonzalez Perez,A (2567)-Munoz Pantoja,M (2559) Barcelona 2014}) 12. Bxc7 $1 {[%emt 0:05:48]} Qxc7 {[%emt 0:04:09]} 13. Nxe4 {[%emt 0:00:14]} Qd8 {[%emt 0:02:58]} 14. Nxf6+ {[%emt 0:00:21]} Bxf6 {[%emt 0:00:10]} 15. Qa4 {[%emt 0:00:59]} Qd6 {[%emt 0:02:08]} 16. Rc3 {[%emt 0:01:17]} a6 {[%emt 0:06:26]} 17. Rfc1 {[%emt 0:00:30]} b5 {[%emt 0:01:09]} 18. Qc2 {[%emt 0:02:35]} h6 $146 {[%emt 0:00:27]} ({Predecessor:} 18... g6 19. a4 {1-0 (41) Dzagnidze,N (2454)-Popova,N (2223) Turin 2006}) 19. Bh7+ {[%emt 0:03:53]} Kh8 {[%emt 0:00:33]} 20. Bf5 {[%emt 0:00:02]} g6 {[%emt 0:04:11]} 21. Rc7 {[%emt 0:02:08]} gxf5 {[%emt 0:08:24]} 22. Rxb7 {[%emt 0:00:07]} Qe6 {[%emt 0:02:15]} 23. g3 {[%emt 0:01:07]} Kg7 {[%emt 0:04:13]} 24. Rc7 {[%emt 0:01:07]} Rfd8 {[%emt 0:05:43]} 25. Ne1 {[%emt 0:02:55]} Bg5 {[%emt 0:02:27]} 26. h4 {[%emt 0:01:26]} Bf6 {[%emt 0:02:55]} 27. Nd3 {[%emt 0:00:06]} Qe4 {[%emt 0:03:01]} 28. Nf4 {[%emt 0:00:52]} Rd6 {[%emt 0:02:05]} 29. Rc6 {[%emt 0:04:23]} Rad8 {[%emt 0:01:25]} 30. Rxd6 {[%emt 0:00:08]} Rxd6 {[%emt 0:00:04]} 31. Qc7 {[%emt 0:00:37]} Be7 {[%emt 0:01:08]} 32. Qa7 {[%emt 0:02:55]} Bf8 {[%emt 0:00:30]} (32... Bd8 $142 33. Qa8 Qe7) 33. Qb7 {[%emt 0:07:29]} Be7 $18 {[%emt 0:00:33]} 34. Rc7 {[%emt 0:00:22]} Kf8 {[%emt 0:00:30]} 35. Kh2 Ke8 36. Rc8+ {Kf8 Rc7 h5 Kg1 Qb1+ Kg2 Qe4+ Kh2} 1-0

[Event "55th Rubinstein Memorial-C 2019"]
[Site "Polanica-Zdroj"]
[Date "2019.08.21"]
[Round "5.10"]
[White "Szczesniak, Andrzej"]
[Black "Budzisz, Adrian"]
[Result "1-0"]
[ECO "E20"]
[WhiteElo "1954"]
[BlackElo "1631"]
[Annotator "NA"]
[PlyCount "83"]
[EventDate "2019.08.17"]
[EventType "swiss"]
[EventCountry "POL"]
[SourceTitle "playchess.com"]
[Source "ChessBase"]
[SourceQuality "1"]
[TimeControl "40/5400+30:1800+30"]

1. d4 {[%emt 0:00:00]} Nf6 {[%emt 0:00:00]} 2. c4 {[%emt 0:00:00]} e6 {[%emt 0:00:00]} 3. Nc3 {[%emt 0:00:00]} Bb4 {[%emt 0:00:04]} 4. f3 {[%emt 0:00:47]} Bxc3+ {[%emt 0:02:41]} 5. bxc3 {[%emt 0:00:18]} d5 {[%emt 0:00:26]} (5... d6 6. e4 Nbd7 7. Bd3 e5 8. Ne2 O-O 9. O-O Re8 10. Ng3 c5 11. Be3 Nf8 12. dxc5 dxc5 13. Bxc5 {½-½ (36) Blagojevic,D (2534)-Sakelsek,T (2468) Zadar 2006}) 6. cxd5 {[%emt 0:06:10] E20: Nimzo-Indian: 4 g3 and 4 f3} exd5 {[%emt 0:00:20]} 7. e3 {[%emt 0:00:26]} O-O {[%emt 0:04:50]} 8. Bd3 {[%emt 0:01:10]} Re8 {[%emt 0:03:56]} 9. Ne2 {[%emt 0:00:25]} Nc6 $146 {[%emt 0:02:02]} ({Predecessor:} 9... b6 10. O-O Bb7 11. Ng3 Nbd7 12. Re1 c5 13. Bb2 {1-0 (31) Rogovin,A (1867)-Nielsen,P (1687) Bled 2018}) 10. O-O {[%emt 0:01:19]} h5 {[%emt 0:08:00]} 11. Qc2 {[%emt 0:06:06]} a6 {[%emt 0:04:14]} (11... Ne7 $16 12. Nf4 c5) 12. e4 {[%emt 0:03:21]} dxe4 {[%emt 0:01:11]} 13. fxe4 {[%emt 0:00:07]} Bg4 {[%emt 0:19:58]} 14. Bg5 {[%emt 0:05:58]} Re6 {[%emt 0:08:25]} 15. d5 {[%emt 0:30:38]} Rd6 {[%emt 0:18:32]} 16. dxc6 {[%emt 0:05:34]} Rxd3 {[%emt 0:02:05]} 17. cxb7 {[%emt 0:00:22]} Rb8 {[%emt 0:00:26]} 18. Bxf6 {[%emt 0:01:01]} gxf6 {[%emt 0:01:42]} 19. Nd4 {[%emt 0:00:57]} Rxd4 {[%emt 0:03:55]} 20. cxd4 {[%emt 0:00:05]} Qxd4+ {[%emt 0:04:01]} 21. Qf2 {[%emt 0:00:25]} Qxf2+ {[%emt 0:01:18]} 22. Rxf2 {[%emt 0:00:08]} Rxb7 {[%emt 0:00:13]} 23. Rxf6 {[%emt 0:00:07]} Rb6 {[%emt 0:00:27]} 24. Rxb6 {[%emt 0:01:28]} cxb6 {[%emt 0:00:07]} 25. Rc1 {[%emt 0:01:00]} Be6 {[%emt 0:02:27]} 26. a3 {[%emt 0:02:30]} b5 {[%emt 0:01:53]} 27. Rc6 {[%emt 0:06:29]} a5 $18 {[%emt 0:00:26]} 28. Rc5 {[%emt 0:00:11]} Bc4 {[%emt 0:00:26]} 29. Rxh5 {[%emt 0:00:35]} b4 {[%emt 0:00:27]} 30. axb4 {[%emt 0:00:23]} axb4 {[%emt 0:00:06]} 31. Rc5 {[%emt 0:00:31]} Bd3 {[%emt 0:00:16]} 32. Rc8+ {[%emt 0:00:36]} Kg7 {[%emt 0:00:05]} 33. Rb8 {[%emt 0:00:10]} Bxe4 {[%emt 0:00:10]} 34. Rxb4 {[%emt 0:00:06]} Bg6 {[%emt 0:00:09]} 35. Kf2 {[%emt 0:00:13]} Kh6 {[%emt 0:00:04]} 36. Rb5 {[%emt 0:00:10]} Kg7 {[%emt 0:00:58]} 37. Rc5 {[%emt 0:00:04]} Kh6 {[%emt 0:00:10]} 38. Kg3 {[%emt 0:00:07]} Kg7 {[%emt 0:00:19]} 39. Kf4 {[%emt 0:00:08]} Kh6 {[%emt 0:00:07]} 40. Rc6 {[%emt 0:00:23]} Kh5 {[%emt 0:00:22]} 41. g4+ {[%emt 0:30:41]} Kh4 {[%emt 0:32:27]} 42. Rc8 {[%emt 0:00:15]} 1-0

[Event "55th Rubinstein Memorial-C 2019"]
[Site "Polanica-Zdroj"]
[Date "2019.08.21"]
[Round "5.11"]
[White "Grzelak, Piotr"]
[Black "Bartoszewicz, Marcin"]
[Result "1/2-1/2"]
[ECO "C44"]
[WhiteElo "1673"]
[BlackElo "1950"]
[Annotator "NA"]
[PlyCount "138"]
[EventDate "2019.08.17"]
[EventType "swiss"]
[EventCountry "POL"]
[SourceTitle "playchess.com"]
[Source "ChessBase"]
[SourceQuality "1"]
[TimeControl "40/5400+30:1800+30"]

1. e4 {[%emt 0:00:00]} e5 {[%emt 0:00:04]} 2. Nf3 {[%emt 0:00:00]} Nc6 {[%emt 0:00:43]} 3. d4 {[%emt 0:00:05]} exd4 {[%emt 0:00:51]} 4. Nxd4 {[%emt 0:00:11]} Qf6 {[%emt 0:03:58]} 5. Nxc6 {[%emt 0:00:41]} Bc5 {[%emt 0:03:00]} 6. Qf3 {[%emt 0:02:03]} dxc6 {[%emt 0:06:31]} 7. Nc3 {[%emt 0:05:32] C45: Scotch Game} Qxf3 {[%emt 0:05:44]} (7... Be6 8. a3 O-O-O 9. Be3 Bxe3 10. Qxe3 Kb8 11. f4 Nh6 12. Bd3 Qe7 13. O-O-O f6 14. Rhe1 Nf7 {½-½ (58) Nepomniachtchi,I (2763)-Wang,H (2730) St Petersburg 2018}) 8. gxf3 {[%emt 0:00:11]} Be6 {[%emt 0:02:34]} 9. Be3 {[%emt 0:04:37]} Bxe3 {[%emt 0:03:08]} 10. fxe3 {[%emt 0:00:13]} Ne7 {[%emt 0:05:02]} 11. O-O-O {[%emt 0:03:26]} f6 $146 {[%emt 0:11:55]} ({Predecessor:} 11... O-O 12. Ne2 Rad8 13. Nd4 Bc8 14. Bc4 Bh3 {1-0 (55) Hnydiuk,A (2387)-Warakomski,T (2502) Karpacz 2008}) 12. f4 {[%emt 0:11:45]} g6 {[%emt 0:02:16]} 13. Be2 {[%emt 0:05:04]} Kf7 {[%emt 0:03:15]} 14. h4 {[%emt 0:01:26]} f5 {[%emt 0:05:28]} 15. Bf3 {[%emt 0:08:46]} Rad8 {[%emt 0:03:24]} 16. Rxd8 {[%emt 0:09:06]} Rxd8 {[%emt 0:00:02]} 17. h5 {[%emt 0:00:39]} Kg7 {[%emt 0:03:39]} 18. hxg6 {[%emt 0:02:15]} hxg6 {[%emt 0:00:25]} 19. Rd1 {[%emt 0:06:10]} Rd6 {[%emt 0:03:19]} 20. Rg1 {[%emt 0:08:23]} Rd8 {[%emt 0:09:00]} 21. exf5 {[%emt 0:02:11]} Nxf5 {[%emt 0:00:22]} 22. e4 {[%emt 0:00:51]} Ne7 {[%emt 0:00:10]} 23. f5 {[%emt 0:05:35]} Bf7 {[%emt 0:00:10]} 24. Ne2 {[%emt 0:06:18]} Kf6 {[%emt 0:00:47]} 25. fxg6 {[%emt 0:03:22]} Bxg6 {[%emt 0:00:14]} 26. Nf4 {[%emt 0:00:44]} Rh8 {[%emt 0:02:08]} 27. Re1 {[%emt 0:03:02]} Ke5 {[%emt 0:05:33]} 28. Nd3+ {[%emt 0:00:49]} Kf6 {[%emt 0:05:19]} 29. Nc5 {[%emt 0:01:04]} b6 {[%emt 0:00:55]} 30. Nd3 {[%emt 0:01:07]} Rh4 {[%emt 0:02:18]} 31. Kd2 {[%emt 0:00:48]} a5 {[%emt 0:01:13]} 32. b3 {[%emt 0:02:02]} Bf7 {[%emt 0:02:49]} 33. a3 {[%emt 0:01:17]} c5 {[%emt 0:00:42]} 34. Kc3 {[%emt 0:03:15]} Ng6 {[%emt 0:01:37]} 35. Kd2 {[%emt 0:01:13]} Ne5 {[%emt 0:02:00]} 36. Bg2 $15 {[%emt 0:01:41]} Nxd3 {[%emt 0:03:04]} 37. Kxd3 {[%emt 0:00:26]} Ke5 {[%emt 0:00:15]} 38. Ke3 {[%emt 0:00:59]} Bg6 {[%emt 0:00:48]} 39. Kd3 {[%emt 0:00:25]} Rh2 {[%emt 0:00:42]} 40. Bf3 {[%emt 0:00:50]} Rh3 {[%emt 0:00:48]} 41. Ke2 {[%emt 0:30:55]} Bxe4 {[%emt 0:31:16]} 42. Bxe4 {[%emt 0:00:13]} Kxe4 {[%emt 0:00:06]} 43. Kd2+ {[%emt 0:00:08]} Kd4 {[%emt 0:00:22]} 44. Re7 {[%emt 0:01:08]} Rh2+ {[%emt 0:00:13]} 45. Kc1 {[%emt 0:00:36]} c6 {[%emt 0:01:32]} 46. Rd7+ {[%emt 0:00:08]} Ke5 {[%emt 0:00:16]} 47. Rb7 {[%emt 0:00:30]} b5 {[%emt 0:00:18]} 48. Ra7 {[%emt 0:00:21]} Kd4 {[%emt 0:02:21]} 49. Rd7+ {[%emt 0:00:08]} Ke4 {[%emt 0:00:24]} 50. Ra7 {[%emt 0:00:34]} c4 {[%emt 0:00:49]} 51. bxc4 {[%emt 0:01:11]} bxc4 {[%emt 0:00:43]} 52. Kb2 {[%emt 0:00:17]} Rh5 {[%emt 0:00:29]} 53. Kc3 {[%emt 0:00:43]} Rh3+ {[%emt 0:00:27]} 54. Kb2 {[%emt 0:00:28]} Kd4 {[%emt 0:00:23]} 55. Rxa5 {[%emt 0:00:26]} Rh7 {[%emt 0:00:19]} 56. Rg5 {[%emt 0:01:05]} Rb7+ {[%emt 0:00:17]} 57. Kc1 {[%emt 0:00:28]} Ra7 {[%emt 0:00:22]} 58. Rg4+ {[%emt 0:00:14]} Kc5 {[%emt 0:00:06]} 59. Kb2 {[%emt 0:00:25]} Kb5 {[%emt 0:00:09]} 60. Rg5+ {[%emt 0:00:21]} c5 {[%emt 0:00:07]} 61. Rg4 {[%emt 0:00:10]} Ra4 {[%emt 0:00:34]} 62. Rg3 {[%emt 0:00:30]} Ra6 {[%emt 0:00:23]} 63. Rg4 {[%emt 0:00:24]} Rh6 {[%emt 0:00:38]} 64. a4+ {[%emt 0:00:35]} Kb4 {[%emt 0:00:37]} 65. c3+ {[%emt 0:00:11]} Kxa4 {[%emt 0:00:11]} 66. Rxc4+ {[%emt 0:00:09]} Kb5 {[%emt 0:00:06]} 67. Kb3 {[%emt 0:00:49]} Rh1 {[%emt 0:00:56]} 68. Rg4 {[%emt 0:00:21]} Rb1+ {[%emt 0:01:06]} 69. Kc2 {[%emt 0:00:17]} Re1 {[%emt 0:00:37]} 1/2-1/2

[Event "55th Rubinstein Memorial-C 2019"]
[Site "Polanica-Zdroj"]
[Date "2019.08.21"]
[Round "5.12"]
[White "Topola, Rafal"]
[Black "Tokmantsev, Ivan"]
[Result "0-1"]
[ECO "C01"]
[WhiteElo "1660"]
[BlackElo "1918"]
[Annotator "NA"]
[PlyCount "120"]
[EventDate "2019.08.17"]
[EventType "swiss"]
[EventCountry "POL"]
[SourceTitle "playchess.com"]
[Source "ChessBase"]
[SourceQuality "1"]
[TimeControl "40/5400+30:1800+30"]

1. e4 {[%emt 0:00:00]} e6 {[%emt 0:01:28]} 2. d4 {[%emt 0:00:00]} d5 {[%emt 0:00:30]} 3. exd5 {[%emt 0:00:00]} exd5 {[%emt 0:00:08]} 4. Nf3 {[%emt 0:00:09]} Nf6 {[%emt 0:00:19]} 5. c4 {[%emt 0:02:55]} c6 {[%emt 0:00:22]} 6. Nc3 {[%emt 0:00:17]} Be7 {[%emt 0:01:23]} 7. Bd3 {[%emt 0:00:55]} O-O {[%emt 0:01:00]} 8. O-O {[%emt 0:00:20]} Bg4 {[%emt 0:00:36]} 9. cxd5 {[%emt 0:01:30]} Nxd5 {[%emt 0:01:38]} 10. Nxd5 $146 {[%emt 0:20:43] C01: French: Exchange Variation} ({Predecessor:} 10. Re1 Nd7 11. Nxd5 cxd5 12. Bf4 Rc8 13. h3 Bh5 14. Bf5 Bg6 15. Bxg6 fxg6 16. Bg3 Bf6 17. Qb3 Nb6 {½-½ (43) Speelman,J (2610)-Salov,V (2645) Linares 1991}) 10... Qxd5 {[%emt 0:02:24]} 11. Re1 {[%emt 0:00:22]} Bxf3 {[%emt 0:00:27]} 12. Qxf3 {[%emt 0:02:49]} Qxf3 {[%emt 0:00:58]} 13. gxf3 {[%emt 0:00:00]} Bf6 {[%emt 0:00:10]} 14. Be3 {[%emt 0:00:01]} Nd7 {[%emt 0:00:48]} 15. Rad1 {[%emt 0:01:18]} Nb6 {[%emt 0:00:48]} 16. Bf4 {[%emt 0:00:23]} g6 {[%emt 0:03:29]} 17. Be5 {[%emt 0:00:29]} Kg7 {[%emt 0:00:13]} 18. Bc2 {[%emt 0:03:34]} Rad8 {[%emt 0:01:08]} 19. Bb3 {[%emt 0:02:02]} Rd7 {[%emt 0:00:44]} 20. a4 {[%emt 0:17:20]} Rfd8 {[%emt 0:01:46]} 21. a5 {[%emt 0:03:13]} Nd5 {[%emt 0:00:36]} 22. Bxd5 {[%emt 0:01:04]} (22. f4 $142) 22... Rxd5 {[%emt 0:00:08]} 23. Bxf6+ {[%emt 0:00:04]} Kxf6 {[%emt 0:00:07]} 24. a6 {[%emt 0:00:05]} bxa6 {[%emt 0:01:23]} 25. Ra1 {[%emt 0:00:14]} a5 {[%emt 0:00:15]} 26. Rec1 {[%emt 0:00:08]} R8d6 {[%emt 0:02:04]} 27. Rc5 {[%emt 0:00:15]} Rxd4 {[%emt 0:00:05]} 28. Rcxa5 {[%emt 0:00:18]} Rb4 {[%emt 0:01:02]} 29. Rxa7 $17 {[%emt 0:01:31]} Rxb2 {[%emt 0:00:07]} 30. Rc7 {[%emt 0:00:06]} Kg7 {[%emt 0:00:12]} 31. Kg2 {[%emt 0:03:05]} Rc2 {[%emt 0:01:25]} 32. Ra6 {[%emt 0:00:34]} Rf6 {[%emt 0:00:10]} 33. Ra3 {[%emt 0:01:40]} Rf5 {[%emt 0:01:45]} 34. h4 {[%emt 0:01:41]} c5 {[%emt 0:00:27]} 35. Kg3 {[%emt 0:00:28]} h5 {[%emt 0:00:12]} 36. Re3 {[%emt 0:01:09]} Rc4 {[%emt 0:00:59]} 37. Re4 {[%emt 0:00:42]} Rc3 {[%emt 0:02:30]} 38. Re3 {[%emt 0:00:29]} Rc1 {[%emt 0:00:05]} 39. Re4 {[%emt 0:01:20]} Rd1 {[%emt 0:00:08]} 40. Re3 {[%emt 0:02:11]} Rdd5 {[%emt 0:01:17]} 41. f4 {[%emt 0:34:43]} Rd4 {[%emt 0:30:17]} 42. Rc3 {[%emt 0:06:07]} Rdxf4 {[%emt 0:00:26]} 43. f3 {[%emt 0:00:05]} Rd4 {[%emt 0:00:39]} 44. R7xc5 {[%emt 0:04:26]} Rff4 {[%emt 0:00:07]} 45. Rd3 {[%emt 0:00:11]} Rxh4 {[%emt 0:00:13]} 46. Rxd4 {[%emt 0:00:22]} Rxd4 {[%emt 0:00:04]} 47. f4 {[%emt 0:00:19]} Rd3+ {[%emt 0:00:56]} 48. Kg2 {[%emt 0:00:57]} Kf6 {[%emt 0:01:00]} 49. Ra5 {[%emt 0:00:21]} Ke6 {[%emt 0:00:35]} 50. f5+ {[%emt 0:01:16]} Kf6 {[%emt 0:00:02]} 51. fxg6 {[%emt 0:00:07]} fxg6 {[%emt 0:00:06]} 52. Rb5 {[%emt 0:00:18]} Kg7 {[%emt 0:00:05]} 53. Ra5 {[%emt 0:00:08]} Kh6 {[%emt 0:00:04]} 54. Kh2 {[%emt 0:00:26]} h4 {[%emt 0:00:06]} 55. Ra8 {[%emt 0:02:08]} g5 {[%emt 0:00:06]} 56. Ra6+ {[%emt 0:00:35]} Kh5 {[%emt 0:00:05]} 57. Ra8 {[%emt 0:00:07]} Rd2+ {[%emt 0:00:07]} 58. Kg1 {[%emt 0:00:05]} h3 {[%emt 0:00:19]} 59. Rh8+ {[%emt 0:00:24]} Kg4 {[%emt 0:00:04]} 60. Ra8 {[%emt 0:00:11]} Kg3 {[%emt 0:00:04]} 0-1

[Event "55th Rubinstein Memorial-C 2019"]
[Site "Polanica-Zdroj"]
[Date "2019.08.21"]
[Round "5.13"]
[White "Wianecki, Mateusz"]
[Black "Simon, Marek"]
[Result "1-0"]
[ECO "A01"]
[WhiteElo "1634"]
[BlackElo "1879"]
[Annotator "NA"]
[PlyCount "91"]
[EventDate "2019.08.17"]
[EventType "swiss"]
[EventCountry "POL"]
[SourceTitle "playchess.com"]
[Source "ChessBase"]
[SourceQuality "1"]
[TimeControl "40/5400+30:1800+30"]

1. b3 {[%emt 0:03:35]} d5 {[%emt 0:00:15]} 2. Bb2 Nf6 3. e3 {[%emt 0:01:00]} g6 {[%emt 0:01:27]} 4. f4 {[%emt 0:00:27]} Bg7 {[%emt 0:00:17]} 5. Nf3 {[%emt 0:00:03]} O-O {[%emt 0:00:23]} 6. Be2 {[%emt 0:00:47]} c5 {[%emt 0:00:50]} 7. O-O {[%emt 0:00:27]} Nc6 {[%emt 0:02:29]} 8. Bb5 {[%emt 0:03:00]} Bd7 {[%emt 0:01:07]} 9. Bxc6 {[%emt 0:00:12]} Bxc6 {[%emt 0:00:23]} 10. Ne5 {[%emt 0:00:04] A03: Bird's Opening with 1...d5} Qc7 {[%emt 0:02:54]} 11. Nxc6 {[%emt 0:13:43]} Qxc6 {[%emt 0:00:29]} 12. Be5 {[%emt 0:05:02]} b5 $146 {[%emt 0:04:10]} ({Predecessor:} 12... Rad8 13. d3 Qe6 14. Re1 Ng4 15. Bxg7 Kxg7 16. Qd2 Qf6 17. Na3 h5 {0-1 (50) Izbranov,A-Pavlov,O (2292) Krasnoyarsk 2009}) 13. Nc3 {[%emt 0:00:46]} b4 {[%emt 0:08:25]} 14. Ne2 {[%emt 0:00:38]} a5 {[%emt 0:03:35]} 15. a4 {[%emt 0:05:16]} e6 {[%emt 0:05:22]} 16. Qc1 {[%emt 0:02:39]} Ne4 {[%emt 0:07:30]} 17. Bxg7 {[%emt 0:00:25]} Kxg7 {[%emt 0:00:04]} 18. Qb2+ {[%emt 0:01:26]} Kg8 {[%emt 0:01:17]} 19. d3 {[%emt 0:02:25]} Nd6 {[%emt 0:00:32]} 20. Qf6 {[%emt 0:01:05]} c4 {[%emt 0:06:07]} 21. Nd4 {[%emt 0:00:43]} Qb6 {[%emt 0:13:21]} 22. g4 {[%emt 0:04:58]} Qd8 {[%emt 0:08:01]} 23. Qe5 {[%emt 0:02:39]} Re8 {[%emt 0:13:23]} 24. f5 {[%emt 0:17:09]} Qg5 {[%emt 0:08:22]} 25. Rf4 {[%emt 0:06:12]} Nxf5 {[%emt 0:02:57]} 26. Nf3 {[%emt 0:01:20]} f6 {[%emt 0:03:04]} 27. Qc7 {[%emt 0:07:36]} Qh6 {[%emt 0:00:48]} 28. gxf5 {[%emt 0:02:22]} e5 {[%emt 0:00:36]} 29. Rh4 {[%emt 0:01:32]} Qxe3+ {[%emt 0:01:45]} 30. Kg2 {[%emt 0:00:11]} Ra7 {[%emt 0:02:13]} 31. Qc6 {[%emt 0:01:14] Double Attack} Qe2+ {[%emt 0:02:00]} 32. Kg3 {[%emt 0:00:27]} Ree7 {[%emt 0:01:09]} 33. fxg6 {[%emt 0:05:36]} f5 {[%emt 0:01:03]} 34. gxh7+ {[%emt 0:00:46]} Rxh7 {[%emt 0:00:21]} 35. Qc8+ {[%emt 0:02:04]} Kg7 {[%emt 0:00:38]} 36. Rxh7+ {[%emt 0:00:11]} Kxh7 {[%emt 0:00:37]} 37. Qxf5+ {[%emt 0:00:14] Double Attack} Kg8 $18 {[%emt 0:00:34]} 38. Qe6+ {[%emt 0:03:57]} Kf8 {[%emt 0:00:25]} 39. Qd6+ {[%emt 0:01:13]} Kf7 {[%emt 0:00:30]} 40. Re1 {[%emt 0:01:32]} Qxc2 {[%emt 0:00:28]} 41. Rxe5 {[%emt 0:30:30]} Qxd3 {[%emt 0:30:17]} 42. Qe6+ {[%emt 0:00:20]} Kg7 {[%emt 0:00:43]} 43. Rg5+ {[%emt 0:00:17]} Kh7 {[%emt 0:00:10]} 44. Qg8+ {[%emt 0:00:35]} Kh6 {[%emt 0:00:04]} 45. Qh8+ {[%emt 0:00:21]} Rh7 {[%emt 0:00:26]} 46. Qf6+ {[%emt 0:00:07]} 1-0

[Event "55th Rubinstein Memorial-C 2019"]
[Site "Polanica-Zdroj"]
[Date "2019.08.21"]
[Round "5.14"]
[White "Pyka, Roman"]
[Black "Bugaj, Hanna"]
[Result "1-0"]
[ECO "D96"]
[WhiteElo "1860"]
[BlackElo "1622"]
[Annotator "NA"]
[PlyCount "105"]
[EventDate "2019.08.17"]
[EventType "swiss"]
[EventCountry "POL"]
[SourceTitle "playchess.com"]
[Source "ChessBase"]
[SourceQuality "1"]
[TimeControl "40/5400+30:1800+30"]

1. d4 {[%emt 0:00:02]} Nf6 {[%emt 0:00:00]} 2. Nf3 {[%emt 0:00:09]} g6 {[%emt 0:00:20]} 3. c4 {[%emt 0:00:11]} Bg7 {[%emt 0:00:16]} 4. Nc3 {[%emt 0:00:08]} d5 {[%emt 0:00:14]} 5. Qb3 {[%emt 0:00:07]} e6 {[%emt 0:02:55]} 6. Bg5 {[%emt 0:00:18]} c6 {[%emt 0:05:06]} 7. e3 {[%emt 0:02:06]} O-O {[%emt 0:00:53]} 8. Rc1 {[%emt 0:00:55] D91: Grünfeld: 4 Nf3 Bg7 5 Bg5} (8. Be2 Nbd7 9. O-O h6 10. Bh4 Re8 11. Rfd1 g5 12. Bg3 Nh5 13. Bd6 Bf8 14. Bxf8 Nxf8 15. e4 Nf4 16. Bf1 dxc4 17. Qxc4 {1-0 (27) Kovacevic,V (2454)-Cosic,M (2227) Biograd 2018}) 8... Qb6 $146 {[%emt 0:09:14]} ({Predecessor:} 8... Nbd7 9. Bd3 Qb6 10. Qc2 dxc4 11. Bxc4 Qb4 12. Bb3 Nd5 13. O-O Nxc3 14. bxc3 Qa5 15. e4 b6 {1-0 (23) Lejlic,S (2345)-Urbina Perez,J (2183) Caleta 2014}) 9. Qc2 {[%emt 0:05:41]} Nbd7 {[%emt 0:04:51]} 10. Be2 {[%emt 0:03:54]} Re8 {[%emt 0:06:45]} 11. O-O {[%emt 0:00:26]} Qc7 {[%emt 0:03:35]} 12. h3 {[%emt 0:05:06]} a6 {[%emt 0:11:05]} 13. a3 {[%emt 0:04:19]} Nb6 {[%emt 0:06:50]} 14. c5 {[%emt 0:09:20]} Nbd7 {[%emt 0:00:38]} 15. Bf4 {[%emt 0:00:52]} Qd8 {[%emt 0:01:03]} 16. Na4 {[%emt 0:01:24]} Nh5 17. Bh2 {[%emt 0:01:54]} e5 {[%emt 0:09:00]} 18. dxe5 {[%emt 0:00:58]} Nxe5 {[%emt 0:00:22]} 19. Nxe5 {[%emt 0:02:31]} Bxe5 {[%emt 0:00:13]} 20. Bxh5 {[%emt 0:02:00]} gxh5 {[%emt 0:01:31]} 21. Nb6 {[%emt 0:00:36]} Bxh2+ {[%emt 0:01:22]} 22. Kxh2 {[%emt 0:00:10]} Rb8 {[%emt 0:00:16]} 23. Rcd1 {[%emt 0:03:56]} Qg5 {[%emt 0:02:04]} 24. Nxc8 {[%emt 0:02:17]} Rbxc8 {[%emt 0:00:25]} 25. Rd4 {[%emt 0:00:17]} Qe5+ {[%emt 0:03:48]} 26. g3 {[%emt 0:02:01]} Re6 {[%emt 0:00:24]} 27. Qc3 {[%emt 0:05:11]} Rce8 {[%emt 0:03:02]} 28. Rfd1 {[%emt 0:04:26]} Rg6 {[%emt 0:03:20]} 29. Rf4 {[%emt 0:01:39]} Qxc3 {[%emt 0:01:49]} 30. bxc3 {[%emt 0:00:10]} Rge6 {[%emt 0:00:49]} 31. Rb1 {[%emt 0:00:46]} Rb8 {[%emt 0:01:37]} 32. Rfb4 {[%emt 0:00:08]} Re7 {[%emt 0:00:13]} 33. Rb6 {[%emt 0:00:13]} Re4 {[%emt 0:01:56]} 34. Rxc6 {[%emt 0:03:58]} bxc6 {[%emt 0:02:16]} 35. Rxb8+ {[%emt 0:00:10]} Kg7 {[%emt 0:00:04]} 36. Rb6 {[%emt 0:00:12]} Ra4 {[%emt 0:01:15]} 37. Rxc6 {[%emt 0:00:14]} Rxa3 {[%emt 0:00:05]} 38. Rd6 {[%emt 0:00:20]} Rxc3 {[%emt 0:00:25]} 39. Rxd5 {[%emt 0:00:06]} Kg6 {[%emt 0:01:07]} 40. Rd6+ {[%emt 0:00:32]} f6 {[%emt 0:01:33]} 41. Rxa6 {[%emt 0:32:11]} Rxc5 {[%emt 0:30:08]} 42. Kg2 {[%emt 0:00:21]} Kf5 {[%emt 0:01:58]} 43. h4 {[%emt 0:00:12]} Rc4 {[%emt 0:02:55]} 44. Kf3 {[%emt 0:00:42]} Rb4 {[%emt 0:01:36]} 45. e4+ {[%emt 0:00:16]} Kg6 {[%emt 0:01:43]} 46. e5 {[%emt 0:00:07]} Rb3+ {[%emt 0:01:24]} 47. Kg2 {[%emt 0:00:11]} Kf5 {[%emt 0:01:20]} 48. Rxf6+ {[%emt 0:02:00]} Kxe5 {[%emt 0:00:07]} 49. Rh6 {[%emt 0:00:10]} Ke4 {[%emt 0:00:51]} 50. Rxh7 {[%emt 0:00:26]} Rb5 $18 {[%emt 0:00:17]} 51. Rg7 {[%emt 0:00:10]} Rb6 {[%emt 0:01:12]} 52. Rg5 {[%emt 0:00:24]} Rh6 {[%emt 0:00:07]} 53. f3+ {[%emt 0:00:14]} 1-0